Cogmind - Beta 14 @@@ ROGUE MODE // 2025.03.29 @ 13:01:57 Player: SelfCookedBird Result: Destroyed by G-34 Mercenary with Small Laser Performance ------------- Evolutions (1) 500 Regions Visited (3) 600 Robots Destroyed (10) 50 Value Destroyed (184) 184 Prototype IDs (0) 0 Alien Tech Used (0) 0 Bonus (25) 25 TOTAL SCORE: 1359 Bonus ------- Follower Combat Kills 25 Cogmind --------- Core Integrity 0/400 Matter 232/300 Energy 100/100 System Corruption 0% Temperature Cool (6) Movement Core (350) Ox6 Location -9/Mines Parts ------- > --- POWER (1) -------- (None) > --- PROPULSION (4) --- (None) > --- UTILITY (2) ------ Large Storage Unit > --- WEAPON (2) ------- (None) > --- INVENTORY (15) --- Light Ion Engine Light Ion Engine Light Ion Engine Improved Hover Unit Surge Thruster Surge Thruster Surge Thruster Surge Thruster Cooling System Medium Storage Unit Sensor Array System Shield System Shield System Shield Peak State ------------ > --- POWER ------------ Improved Ion Engine > --- PROPULSION ------- Aluminum Leg Aluminum Leg Aluminum Leg Aluminum Leg > --- UTILITY ---------- Large Storage Unit System Shield > --- WEAPON ----------- Medium Laser Light EM Pulse Cannon > --- INVENTORY -------- Ion Engine Light Ion Engine Light Ion Engine Aluminum Leg Flight Unit Flight Unit Surge Thruster Surge Thruster Surge Thruster Surge Thruster Medium Storage Unit Sensor Array System Shield System Shield System Shield [Rating: 15] Favorites ----------- Power Ion Engine Engine Ion Engine Propulsion Aluminum Leg Treads Light Treads Leg Aluminum Leg Utility Large Storage Unit Storage Large Storage Unit Hackware System Shield Protection Light Armor Plating Weapon Light EM Pulse Cannon Energy Gun Small Laser Energy Cannon Light EM Pulse Cannon Ballistic Gun Light Assault Rifle Ballistic Cannon Improved Light Cannon Special Weapon Mining Laser Build | -11 -10 -9 -9 ------- Run | Yrd Mat Mat Min Slots Evolved 2 | . . 2 . Power . | . . . . Propulsion 2 | . . 2 . Utility . | . . . . Weapon . | . . . . Parts Attached 23 | 6 7 9 1 Power 3 | 1 1 1 . Engine 3 | 1 1 1 . Core . | . . . . Reactor . | . . . . Propulsion 8 | 2 3 3 . Treads 1 | . . 1 . Leg 7 | 2 3 2 . Wheel . | . . . . Hover . | . . . . Flight . | . . . . Utility 5 | 1 2 2 . Device . | . . . . Storage 3 | 1 2 . . Processor . | . . . . Hackware 1 | . . 1 . Protection 1 | . . 1 . Artifact . | . . . . Weapon 7 | 2 1 3 1 Energy Gun 3 | 2 . 1 . Energy Cannon 1 | . . 1 . Ballistic Gun 1 | . 1 . . Ballistic Cannon 1 | . . 1 . Launcher . | . . . . Special Weapon 1 | . . . 1 Impact Weapon . | . . . . Slashing Weapon . | . . . . Piercing Weapon . | . . . . Special Melee Weapon . | . . . . Unidentified Prototypes . | . . . . Corrupted Parts 1 | . 1 . . System Corruption 1 | . 1 . . Parts Lost 9 | . . . 9 Power 1 | . . . 1 Propulsion 4 | . . . 4 Utility 1 | . . . 1 Weapon 3 | . . . 3 Highest Loss Streak 9 | . . . 9 To Critical Strikes . | . . . . Average Slot Usage (%) 84 | . 80 96 68 Engine 11 | . 13 11 7 Leg 33 | . 27 41 27 Storage 12 | . 14 11 11 Hackware 1 | . . 3 . Protection 3 | . . 5 5 Energy Gun 10 | . 19 6 . Energy Cannon 4 | . . 8 6 Ballistic Gun 3 | . 5 2 . Ballistic Cannon 3 | . . 4 9 Peak Build Rating 15 | 6 7 15 15 Average Rating 9 | 4 6 12 11 On Entrance 6 | . 6 6 15 Naked Turns . | . . . . Heaviest Build 38 | 13 28 38 38 Greatest Support 40 | 20 20 40 40 Greatest Overweight (x) 10 | 1 2 2 10 Average Overweight (x) . | . . . . Largest Inventory Capacity 15 | 8 15 15 15 Average Capacity 13 | 7 13 15 15 Most Carried 15 | 6 14 15 15 Average Carried 11 | 4 10 13 14 Final Capacity 15 | 8 15 15 15 Final Carried 15 | 6 14 15 14 Class Distribution -------------------- 100% | Mutant Dominant Class ---------------- Mutant | -10/Materials Mutant | -9/Materials Mutant | -9/Mines Resources | -11 -10 -9 -9 ----------- Run | Yrd Mat Mat Min Matter Collected 398 | 259 43 54 42 Remotely . | . . . . Salvage Created 284 | . 191 54 39 Parts 18 | . 15 3 . Haulers Intercepted . | . . . . Recyclers Shooed 1 | . 1 . . Parts Field Recycled . | . . . . Retrieved Matter . | . . . . Parts Self-Destructed . | . . . . Prevented . | . . . . Kills | -11 -10 -9 -9 ------- Run | Yrd Mat Mat Min Combat Hostiles Destroyed 8 | . 6 1 1 Guns 7 | . 6 1 . Cannons 1 | . . . 1 Classes Destroyed 5 | . 3 1 1 Recycler 1 | . 1 . . Watcher 1 | . 1 . . Swarmer 6 | . 6 . . Duelist 1 | . . . 1 Sentry 1 | . . 1 . Best Kill Streak 3 | . 3 1 1 Combat Bots Only 3 | . 3 1 1 Max Kills in Single Turn 1 | . 1 1 1 Gunslinging . | . . . . Exploded . | . . . . Melee . | . . . . Uniques/NPCs Destroyed . | . . . . Combat | -11 -10 -9 -9 -------- Run | Yrd Mat Mat Min Hostile Shots Fired 146 | . 34 4 108 Missed 29 | . 8 1 20 Damage Taken 1500 | . 215 47 1238 Core 453 | . 44 14 395 Absorbed by Shields . | . . . . Core Remaining (%) 91 | 100 82 . . Volleys Fired 45 | . 20 3 22 Largest 2 | . 2 2 2 Hottest 139 | . 80 106 139 Shots Fired 76 | . 38 6 32 Gun 41 | . 38 3 . Cannon 34 | . . 3 31 Launcher . | . . . . Special 1 | . . . 1 Kinetic 24 | . 2 . 22 Thermal 22 | . 18 3 1 Explosive . | . . . . Electromagnetic 30 | . 18 3 9 Robot Hit Streak 7 | . 4 4 7 Robot Miss Streak 3 | . 3 1 3 Penetration Max . | . . . . Secondary Targets 2 | . 2 . . Max Gunslinging Chain 1 | . 1 . . Shots Hit Robots 40 | . 19 4 17 Core Hits 15 | . 9 2 4 Critical Kills . | . . . . Critical Parts Destroyed . | . . . . Critical Strikes . | . . . . Melee Attacks . | . . . . Impact . | . . . . Slashing . | . . . . Piercing . | . . . . Sneak Attacks . | . . . . Combat Hostiles . | . . . . Follow-up Attacks . | . . . . Damage Inflicted 705 | . 234 56 415 Guns 235 | . 197 38 . Cannons 429 | . . 18 411 Explosions 33 | . 33 . . Melee . | . . . . Ramming 8 | . 4 . 4 Kinetic 346 | . 18 . 328 Thermal 126 | . 88 38 . Explosive . | . . . . Electromagnetic 225 | . 124 18 83 Impact . | . . . . Slashing . | . . . . Piercing . | . . . . Highest Corruption 1 | . 1 . . Average Corruption 1 | . 1 . . Corruption Purged . | . . . . Corruption Blocked . | . . . . Overload Shots . | . . . . Overflow Damage . | . . . . Projectiles . | . . . . Explosions . | . . . . Melee . | . . . . Knockbacks 6 | . . . 6 Impact . | . . . . Kinetic 6 | . . . 6 Secondary . | . . . . Self-Inflicted Damage . | . . . . Shots . | . . . . Rammed . | . . . . Targets Rammed 4 | . 2 . 2 Kicked 4 | . 2 . 2 Crushed . | . . . . Highest Temperature 307 | . 108 144 307 Average Temperature 101 | . 39 74 150 Received Heat Transfer 681 | . . 36 645 Effects 3 | . . . 3 Interference 2 | . . . 2 Short Circuit 1 | . . . 1 Siege Activations . | . . . . Robots Corrupted . | . . . . Combat Hostiles . | . . . . Parts Fried . | . . . . Impact Corruptions . | . . . . Robots Melted . | . . . . Combat Hostiles . | . . . . Parts Melted . | . . . . Heat Transferred 286 | . 175 111 . Parts Sabotaged . | . . . . Parts Stolen . | . . . . Parts Stripped . | . . . . Power Chain Reactions 1 | . 1 . . Alert | -11 -10 -9 -9 ------- Run | Yrd Mat Mat Min Peak Influence 243 | . 243 77 53 Initial 30 | . . 17 30 Average 79 | . 149 50 22 Maximum Alert Level 1 | . 1 . . Low Security (%) 84 | 100 60 100 100 Level 1 15 | . 39 . . Level 2 . | . . . . Level 3 . | . . . . Level 4 . | . . . . Level 5 . | . . . . High Security . | . . . . Max Security . | . . . . Squads Dispatched 3 | . . 1 2 Investigation 1 | . . 1 . Extermination . | . . . . Reinforcement 1 | . . . 1 Assault 1 | . . . 1 Garrison . | . . . . Intercept . | . . . . Searches Triggered . | . . . . Construction Impeded 1 | . . . 1 Haulers Reinforced . | . . . . Active Scanning Responses . | . . . . Cargo Convoy Interrupts . | . . . . Stealth | -11 -10 -9 -9 --------- Run | Yrd Mat Mat Min Distress Signals . | . . . . Communications Jammed . | . . . . Distress Signals . | . . . . Times Spotted 21 | . 13 1 7 Peak Tracking Total 4 | . 3 1 4 Tactical Retreats 2 | . 2 . . Traps | -11 -10 -9 -9 ------- Run | Yrd Mat Mat Min Traps Triggered 1 | . 1 . . Indirectly . | . . . . Trap Hack Attempts . | . . . . Triggered . | . . . . Disarmed . | . . . . Reprogrammed . | . . . . Reused . | . . . . Traps Extracted . | . . . . Installed . | . . . . Triggered . | . . . . Machines | -11 -10 -9 -9 ---------- Run | Yrd Mat Mat Min Machines Disabled 1 | . . 1 . Max in Single Turn 1 | . . 1 . Machines Repaired . | . . . . Machines Dismantled . | . . . . Machines Sabotaged . | . . . . Overloaded Fab Kills . | . . . . Hacking | -11 -10 -9 -9 --------- Run | Yrd Mat Mat Min Machines Accessed 4 | . 3 1 . Terminals 4 | . 3 1 . Fabricators . | . . . . Repair Stations . | . . . . Recycling Units . | . . . . Scanalyzers . | . . . . Garrison Access . | . . . . Total Hacks 12 | . 8 4 . Successful 5 | . 3 2 . Failed 7 | . 5 2 . Catastrophic 2 | . 2 . . Database Lockouts . | . . . . Manual 7 | . 7 . . Terminals 12 | . 8 4 . Fabricators . | . . . . Repair Stations . | . . . . Recycling Units . | . . . . Scanalyzers . | . . . . Garrison Access . | . . . . Terminal Hacks 5 | . 3 2 . Robot Analysis 1 | . . 1 . Branch Access Points 1 | . 1 . . Alert Level 1 | . . 1 . Recall Investigation 1 | . 1 . . Hauler Manifests 1 | . 1 . . Fabricator Hacks . | . . . . Repair Station Hacks . | . . . . Recycling Unit Hacks . | . . . . Scanalyzer . | . . . . Garrison Access Hacks . | . . . . Unauthorized Hacks . | . . . . Terminals . | . . . . Fabricators . | . . . . Repair Stations . | . . . . Recycling Units . | . . . . Scanalyzers . | . . . . Garrison Access . | . . . . Data Cores Recovered . | . . . . Used . | . . . . Hacking Detections 4 | . 3 1 . Full Trace Events 2 | . 1 1 . Feedback Events . | . . . . Feedback Blocked . | . . . . Robot Schematics Acquired . | . . . . Robots Built . | . . . . Authchips . | . . . . Time . | . . . . Total Robot Build Rating . | . . . . Part Schematics Acquired . | . . . . Parts Built . | . . . . Authchips . | . . . . Time . | . . . . Total Part Build Rating . | . . . . Parts Repaired . | . . . . Time . | . . . . Parts Recycled . | . . . . Recycled Matter . | . . . . Retrieved Matter . | . . . . Retrieved Components . | . . . . Parts Scanalyzed . | . . . . Part Schematics Acquired . | . . . . Parts Damaged . | . . . . Bothacking | -11 -10 -9 -9 ------------ Run | Yrd Mat Mat Min Used RIF Installer . | . . . . Robots Hacked . | . . . . Non-combat . | . . . . Combat . | . . . . Robot Hacks Applied . | . . . . Relay Couplers Released . | . . . . Fabnet Peak Effective % . | . . . . Robots Rewired . | . . . . Allies Hacked . | . . . . Hacks Repelled . | . . . . Allies | -11 -10 -9 -9 -------- Run | Yrd Mat Mat Min Total Allies 1 | . . . 1 Largest Group 1 | . . . 1 Highest-Rated Group 31 | . . . 31 Highest-Rated Ally 31 | . . . 31 Total Orders . | . . . . Ally Attacks 4 | . . . 4 Total Damage 64 | . . . 64 Kills 1 | . . . 1 Allies Corrupted . | . . . . Allies Melted . | . . . . Intel | -11 -10 -9 -9 ------- Run | Yrd Mat Mat Min Robot Analysis Total 1 | . . 1 . Derelict Logs Recovered . | . . . . Drone Launches . | . . . . Drone Recoveries . | . . . . Exploration | -11 -10 -9 -9 ------------- Run | Yrd Mat Mat Min Turns Passed 1059 | 78 404 398 179 Spaces Moved 583 | 54 193 276 60 Core 5 | 4 . . 1 Treads 12 | . . 12 . Legs 566 | 50 193 264 59 Wheels . | . . . . Hover . | . . . . Flight . | . . . . Fastest Speed 50 | 50 120 120 120 Average Speed 142 | 117 167 131 135 Slowest Speed 550 | 120 260 260 550 Overloaded Moves . | . . . . Propulsion Burnouts . | . . . . Robots Hopped . | . . . . Cave-ins Triggered . | . . . . Exploration Rate (%) 16 | 5 33 16 11 Regions Visited 3 Branch Regions 1 Pre-discovered Areas . | . . . . Known Exits Taken . | . . . . Unknown Exits Taken 3 | 1 1 1 . Scrap Searched . | . . . . Spaces Dug . | . . . . Terrain Destroyed 3 | . . . 3 Melee . | . . . . Projectile 3 | . . . 3 AOE . | . . . . Terrain Rammed . | . . . . Walls Destroyed . | . . . . Machines Disabled . | . . . . Actions | -11 -10 -9 -9 --------- Run | Yrd Mat Mat Min Total 728 | 65 234 307 122 Wait 37 | . . . 37 Move 580 | 53 192 275 60 Hop . | . . . . Pick Up 25 | 6 8 11 . Fast Attach 10 | 6 3 1 . Attach 6 | . 1 4 1 Detach 3 | . 2 1 . Swap 7 | . 3 4 . Drop 11 | . 3 8 . Fire 45 | . 20 3 22 Melee . | . . . . Ram . | . . . . Kick 4 | . 2 . 2 Crush . | . . . . Escape Stasis . | . . . . Rewire . | . . . . Trap . | . . . . Miscellaneous . | . . . . Route ------- -11/Scrapyard -10/Materials (discovered 2 exits: *Mat / Min) -9/Materials -9/Mines History --------- Turn | Location | Event 8 | -11/Scrapyard | Discovered new exit (range 15) 79 | -11/Scrapyard | Entered Materials 156 | -10/Materials | Identified exit to Mines 313 | -10/Materials | Build established: Mutant 315 | -10/Materials | Discovered new exit (range 10) 483 | -10/Materials | Entered another Materials area 483 | -9/Materials | Evolved 2 slots: Propulsion x2 751 | -9/Materials | Discovered new exit (range 7) 881 | -9/Materials | Entered Mines 882 | -9/Mines | Met a Derelict testing a Signal Generator 1040 | -9/Mines | Core integrity fell below 50% 1052 | -9/Mines | Core integrity fell below 20% 1060 | -9/Mines | Destroyed by G-34 Mercenary with Small Laser Last Messages --------------- 01002_ M-13 Machinist repairs Welding Torch. 01002_ K-01 Serf collects debris. 01004_ R-06 Scavenger collects Imp. Heat Sink. 01005_ Mining Laser destroyed. 01007_ K-01 Serf collects debris. 01007_ Aluminum Leg destroyed. 01009_ K-01 Serf collects debris. 01019_ M-13 Machinist repairs Particle Gun. 01019_ Imp. Ion Engine destroyed. 01021_ G-47 Trooper knocked back. 01022_ K-01 Serf collects debris. 01027_ U-05 Engineer builds a Wall. 01030_ M-13 Machinist repairs G-47 Trooper. 01032_ M-13 Machinist repairs Lgt. Nuclear Core. 01032_ U-05 Engineer lays Concrete. 01035_ Imp. Light Cannon destroyed. 01036_ U-05 Engineer lays Concrete. 01051_ U-05 Engineer builds a Wall. 01053_ G-34 Mercenary IFF system glitched. 01055_ U-05 Engineer builds a Wall. Map ----- +----------------------------------------------------+ | ?????????????????????????????????????????? | | ?????????????????????????????????????????? | | ?????????????????????????????????????????? | | ?????????????????????????????????????????? | | ?????????????????????????????????????????? | | ?????????????????????????????????????????? | | ?????????????????????????????????????????? | | ?????????????????????????????????????????? | | ?????????????????????????????????????????? | | ?????????????????????????????????????????? | | ?????????????????????????????????????????? | | ?????????????????????????????????????????? | | ?????????????????????????????????????????? | | ?????????????????????????????????????????? | | ?????????????????????????????????????????? | | ?????????????????????????????????????????? | | ?????????????????????????????????????????? | | ?????????????????????????????????????????? | | ?????????????????????????????????????????? | | ?????????????????????????????????????????? | | ?????????????##??????????????????????????? | | ????????????## ???????####???????????????? | | ???????????## ?????##% ##??????????????? | | ??????????## #???## %% #??????????????? | | ??????????# #### g##?????????????? | | ???????? g% g % @########???????? | | ???????? % # #???????? | | ???????? ### """ g m #???????? | | ?????????????## """ #??###??? | | ?????????????## %""" # #?# ##?? | | ??????????????## ##### ### ##? | | ???????????????### ##????### #? | | ?????????????????### ########### #? | | ???????????????????# #### #? | | ???????????????????# #?? | | ???????????????????# ### ###?? | | ???????????????????###### ##?## ##???? | | ????????????????????????## ##???####????? | | ?????????????????????????####????????????? | | ?????????????????????????????????????????? | | | | | | | | | | | | | | | | | | | | | +----------------------------------------------------+ Best States ------------- Heat Dissipation 28 Energy Generation 12 Energy Capacity 265 Matter Stores 300 Matter Capacity 300 Sight Range 16 Terrain Scan Density 10 Armor Coverage 150 Evasion (%) 55 Recoil Reduction 1 Defensive Hacking 10 Item Schematics ----------------- None Robot Schematics ------------------ None Fabricated ------------ Nothing Alien Tech Used ----------------- None Achievements -------------- None Challenges ------------ None Game ------ Seed MicrowarpHeartRedirector Manual? 0 Play Time 00:14:07 Cumulative 9.5 hours Start 2025.03.29 @ 12:49:34 End 2025.03.29 @ 13:01:57 Sessions 1 Manual Loads 0 Difficulty Rogue Special Mode None Game No. 17 Rogue 17 Adventurer 0 Explorer 0 Win Type - Total 0 Types 0/0/0/0/0/0/0/0/0 Lore% 9 Gallery% 11 Achievement% 12 Wizard Run 0 Options --------- Layout 0 ASCII 1 Keyboard 1 Movement Arrows Keybinds 0 Fullscreen 2 Font 18/SmallcapsGlow Map View 76x50 Zoom Use 0% Tactical HUD 1 Map Filters NONE Filters NONE Steam 1 RUN: 1d008054-e8ac-4fec-b4ca-383f44aa2ad2